Cogmind - Beta 9.3 --- EXPLORER MODE // 2019.12.21 @ 10:07:00 // Winter2019/RPGLIKE Player: BillyNate Result: Destroyed by Y-54 Guardian with Gatling Laser Performance ------------- Evolutions (4) 2000 Regions Visited (5) 1000 Robots Destroyed (1) 5 Value Destroyed (54) 54 Prototype IDs (0) 0 Alien Tech Used (0) 0 Bonus (834) 834 TOTAL SCORE: 3893 Bonus ------- Pacifist 834 Cogmind --------- Core Integrity 0/1000 Matter 300/300 Energy 98/100 System Corruption 1% Temperature Cool (18) Movement Core (50) Location -6/Factory Parts ------- > --- POWER (1) -------- (None) > --- PROPULSION (1) --- (None) > --- UTILITY (1) ------ (None) > --- WEAPON (1) ------- (None) > --- INVENTORY (0) ---- (None) Peak State ------------ None Favorites ----------- Power None Propulsion None Utility None Weapon None Build | -11 -10 -9 -8 -7 -6 ------- Run | Scr Mat Mat Mat Fac Fac Slots Evolved . | . . . . . . Power . | . . . . . . Propulsion . | . . . . . . Utility . | . . . . . . Weapon . | . . . . . . Parts Attached . | . . . . . . Power . | . . . . . . Engine . | . . . . . . Core . | . . . . . . Reactor . | . . . . . . Propulsion . | . . . . . . Treads . | . . . . . . Leg . | . . . . . . Wheel . | . . . . . . Hover . | . . . . . . Flight . | . . . . . . Utility . | . . . . . . Device . | . . . . . . Storage . | . . . . . . Processor . | . . . . . . Hackware . | . . . . . . Protection . | . . . . . . Artifact . | . . . . . . Weapon . | . . . . . . Energy Gun . | . . . . . . Energy Cannon . | . . . . . . Ballistic Gun . | . . . . . . Ballistic Cannon . | . . . . . . Launcher . | . . . . . . Special Weapon . | . . . . . . Impact Weapon . | . . . . . . Slashing Weapon . | . . . . . . Piercing Weapon . | . . . . . . Special Melee Weapon . | . . . . . . Unidentified Prototypes . | . . . . . . Parts Lost . | . . . . . . Power . | . . . . . . Propulsion . | . . . . . . Utility . | . . . . . . Weapon . | . . . . . . Highest Loss Streak . | . . . . . . Average Slot Usage (%) . | . . . . . . Naked Turns 746 | . 29 83 29 424 181 Heaviest Build . | . . . . . . Greatest Support 3 | 3 3 3 3 3 3 Greatest Overweight (x) . | . . . . . . Average Overweight (x) . | . . . . . . Largest Inventory Capacity . | . . . . . . Average Capacity . | . . . . . . Most Carried . | . . . . . . Average Carried . | . . . . . . Final Capacity . | . . . . . . Final Carried . | . . . . . . Class Distribution -------------------- 100% | Hacker-Mutant Dominant Class ---------------- Hacker-Mutant | -10/Materials Hacker-Mutant | -9/Materials Hacker-Mutant | -8/Materials Hacker-Mutant | -7/Factory Hacker-Mutant | -6/Factory Resources | -11 -10 -9 -8 -7 -6 ----------- Run | Scr Mat Mat Mat Fac Fac Matter Collected 200 | 200 . . . . . Remotely . | . . . . . . Salvage Created . | . . . . . . Parts 4 | . . . . 4 . Haulers Intercepted . | . . . . . . Recyclers Shooed . | . . . . . . Parts Field Recycled . | . . . . . . Retrieved Matter . | . . . . . . Parts Self-Destructed . | . . . . . . Prevented . | . . . . . . Kills | -11 -10 -9 -8 -7 -6 ------- Run | Scr Mat Mat Mat Fac Fac Combat Hostiles Destroyed 1 | . . . . 1 . Melee 1 | . . . . 1 . Classes Destroyed 1 | . . . . 1 . Sentry 1 | . . . . 1 . Best Kill Streak 1 | . . . . 1 . Combat Bots Only 1 | . . . . 1 . Max Kills in Single Turn 1 | . . . . 1 . Gunslinging . | . . . . . . Exploded . | . . . . . . Melee 1 | . . . . 1 . Uniques/NPCs Destroyed . | . . . . . . Combat | -11 -10 -9 -8 -7 -6 -------- Run | Scr Mat Mat Mat Fac Fac Damage Taken 1095 | . . 43 28 379 645 Core 1095 | . . 43 28 379 645 Absorbed by Shields . | . . . . . . Core Remaining (%) 84 | 100 100 92 88 40 . Volleys Fired . | . . . . . . Largest . | . . . . . . Hottest . | . . . . . . Shots Fired . | . . . . . . Gun . | . . . . . . Cannon . | . . . . . . Launcher . | . . . . . . Special . | . . . . . . Kinetic . | . . . . . . Thermal . | . . . . . . Explosive . | . . . . . . Electromagnetic . | . . . . . . Robot Hit Streak . | . . . . . . Robot Miss Streak . | . . . . . . Penetration Max . | . . . . . . Secondary Targets . | . . . . . . Shots Hit Robots . | . . . . . . Core Hits 9 | . . 2 . 3 4 Critical Hits . | . . . . . . Critical Kills . | . . . . . . Critical Parts Destroyed . | . . . . . . Melee Attacks . | . . . . . . Impact . | . . . . . . Slashing . | . . . . . . Piercing . | . . . . . . Sneak Attacks . | . . . . . . Combat Hostiles . | . . . . . . Follow-up Attacks . | . . . . . . Damage Inflicted 76 | . . 18 1 28 29 Guns . | . . . . . . Cannons . | . . . . . . Explosions . | . . . . . . Melee . | . . . . . . Ramming 76 | . . 18 1 28 29 Kinetic . | . . . . . . Thermal . | . . . . . . Explosive . | . . . . . . Electromagnetic . | . . . . . . Impact . | . . . . . . Slashing . | . . . . . . Piercing . | . . . . . . Highest Corruption 1 | . . . . . 1 Average Corruption 1 | . . . . . 1 Corruption Purged . | . . . . . . Overload Shots . | . . . . . . Overflow Damage . | . . . . . . Projectiles . | . . . . . . Explosions . | . . . . . . Melee . | . . . . . . Knockbacks 2 | . . . . 1 1 Impact 2 | . . . . 1 1 Kinetic . | . . . . . . Secondary . | . . . . . . Self-Inflicted Damage 34 | . . 8 . 13 13 Shots . | . . . . . . Rammed 19 | . . 3 1 5 10 Targets Rammed 19 | . . 3 1 5 10 Kicked . | . . . . . . Crushed . | . . . . . . Highest Temperature . | . . . . . . Average Temperature . | . . . . . . Received Heat Transfer 372 | . . 30 27 183 132 Siege Activations . | . . . . . . Robots Corrupted . | . . . . . . Combat Hostiles . | . . . . . . Parts Fried . | . . . . . . Impact Corruptions . | . . . . . . Robots Melted . | . . . . . . Combat Hostiles . | . . . . . . Parts Melted . | . . . . . . Heat Transferred . | . . . . . . Parts Sabotaged . | . . . . . . Parts Stolen . | . . . . . . Parts Stripped . | . . . . . . Power Chain Reactions . | . . . . . . Missiles Intercepted . | . . . . . . Alert | -11 -10 -9 -8 -7 -6 ------- Run | Scr Mat Mat Mat Fac Fac Peak Influence 90 | . 21 88 26 90 75 Average Influence 25 | . 14 46 26 25 20 Maximum Alert Level . | . . . . . . Low Security (%) 100 | 100 100 100 100 100 100 Level 1 . | . . . . . . Level 2 . | . . . . . . Level 3 . | . . . . . . Level 4 . | . . . . . . Level 5 . | . . . . . . High Security . | . . . . . . Max Security . | . . . . . . Squads Dispatched 6 | . . 2 1 2 1 Investigation . | . . . . . . Extermination . | . . . . . . Reinforcement 6 | . . 2 1 2 1 Assault . | . . . . . . Garrison . | . . . . . . Intercept . | . . . . . . Construction Impeded 1 | . . . 1 . . Haulers Reinforced . | . . . . . . Stealth | -11 -10 -9 -8 -7 -6 --------- Run | Scr Mat Mat Mat Fac Fac Distress Signals 3 | . 1 1 . . 1 Communications Jammed . | . . . . . . Distress Signals . | . . . . . . Times Spotted 51 | . 1 12 4 18 16 Peak Tracking Total 13 | . 4 9 4 8 13 Tactical Retreats 5 | . . 1 . 3 1 Traps | -11 -10 -9 -8 -7 -6 ------- Run | Scr Mat Mat Mat Fac Fac Traps Triggered 5 | . 1 . . 2 2 Indirectly . | . . . . . . Trap Hack Attempts . | . . . . . . Triggered . | . . . . . . Disarmed . | . . . . . . Reprogrammed . | . . . . . . Reused . | . . . . . . Traps Extracted . | . . . . . . Installed . | . . . . . . Triggered . | . . . . . . Machines | -11 -10 -9 -8 -7 -6 ---------- Run | Scr Mat Mat Mat Fac Fac Machines Disabled . | . . . . . . Max in Single Turn . | . . . . . . Garrison Access 1 | . . . . . 1 Machines Sabotaged . | . . . . . . Garrisons Compromised . | . . . . . . Overloaded Fab Kills . | . . . . . . Fab Network Shutdowns . | . . . . . . Hacking | -11 -10 -9 -8 -7 -6 --------- Run | Scr Mat Mat Mat Fac Fac Machines Accessed 5 | . 1 1 1 1 1 Terminals 4 | . 1 1 1 1 . Fabricators . | . . . . . . Repair Stations . | . . . . . . Recycling Units . | . . . . . . Scanalyzers . | . . . . . . Garrison Access 1 | . . . . . 1 Total Hacks 9 | . 2 3 1 2 1 Successful 5 | . 1 1 1 1 1 Failed 4 | . 1 2 . 1 . Catastrophic 1 | . . . . 1 . Database Lockouts . | . . . . . . Manual 7 | . 2 3 1 1 . Terminals 8 | . 2 3 1 2 . Fabricators . | . . . . . . Repair Stations . | . . . . . . Recycling Units . | . . . . . . Scanalyzers . | . . . . . . Garrison Access 1 | . . . . . 1 Terminal Hacks 4 | . 1 1 1 1 . Level Access Points 3 | . 1 1 1 . . Alert Level 1 | . . . . 1 . Fabricator Hacks . | . . . . . . Repair Station Hacks . | . . . . . . Recycling Unit Hacks . | . . . . . . Scanalyzer . | . . . . . . Garrison Access Hacks 1 | . . . . . 1 Seal Access 1 | . . . . . 1 Unauthorized Hacks . | . . . . . . Terminals . | . . . . . . Fabricators . | . . . . . . Repair Stations . | . . . . . . Recycling Units . | . . . . . . Scanalyzers . | . . . . . . Garrison Access . | . . . . . . Data Cores Recovered . | . . . . . . Used . | . . . . . . Hacking Detections 3 | . 1 1 . 1 . Full Trace Events . | . . . . . . Feedback Events . | . . . . . . Feedback Blocked . | . . . . . . Robot Schematics Acquired . | . . . . . . Robots Built . | . . . . . . Matter . | . . . . . . Time . | . . . . . . Total Robot Build Rating . | . . . . . . Part Schematics Acquired . | . . . . . . Parts Built . | . . . . . . Matter . | . . . . . . Time . | . . . . . . Total Part Build Rating . | . . . . . . Parts Repaired . | . . . . . . Time . | . . . . . . Parts Recycled . | . . . . . . Recycled Matter . | . . . . . . Retrieved Matter . | . . . . . . Retrieved Components . | . . . . . . Parts Scanalyzed . | . . . . . . Part Schematics Acquired . | . . . . . . Parts Damaged . | . . . . . . Bothacking | -11 -10 -9 -8 -7 -6 ------------ Run | Scr Mat Mat Mat Fac Fac Used RIF Installer . | . . . . . . Robots Hacked . | . . . . . . Non-combat . | . . . . . . Combat . | . . . . . . Robot Hacks Applied . | . . . . . . Relay Couplers Released . | . . . . . . Robots Rewired . | . . . . . . Allies Hacked . | . . . . . . Hacks Repelled . | . . . . . . Allies | -11 -10 -9 -8 -7 -6 -------- Run | Scr Mat Mat Mat Fac Fac Total Allies 3 | . . . . 3 . Largest Group 3 | . . . . 3 . Highest-Rated Group 93 | . . . . 93 . Highest-Rated Ally 31 | . . . . 31 . Total Orders . | . . . . . . Ally Attacks 4 | . . . . 4 . Total Damage 64 | . . . . 64 . Kills . | . . . . . . Allies Corrupted . | . . . . . . Allies Melted . | . . . . . . Intel | -11 -10 -9 -8 -7 -6 ------- Run | Scr Mat Mat Mat Fac Fac Robot Analysis Total . | . . . . . . Derelict Logs Recovered . | . . . . . . Drone Launches . | . . . . . . Drone Recoveries . | . . . . . . Exploration | -11 -10 -9 -8 -7 -6 ------------- Run | Scr Mat Mat Mat Fac Fac Turns Passed 757 | 11 29 83 29 424 181 Spaces Moved 1282 | 23 58 159 55 681 306 Core 1282 | 23 58 159 55 681 306 Treads . | . . . . . . Legs . | . . . . . . Wheels . | . . . . . . Hover . | . . . . . . Flight . | . . . . . . Fastest Speed 50 | 50 50 50 50 50 50 Average Speed 50 | 50 50 50 50 50 50 Slowest Speed 50 | 50 50 50 50 50 50 Overloaded Moves . | . . . . . . Propulsion Burnouts . | . . . . . . Robots Hopped . | . . . . . . Cave-ins Triggered . | . . . . . . Exploration Rate (%) 17 | 3 22 30 11 25 13 Regions Visited 5 Branch Regions . Pre-discovered Areas . | . . . . . . Known Exits Taken 5 | 1 1 1 1 1 . Unknown Exits Taken . | . . . . . . Scrap Searched . | . . . . . . Spaces Dug . | . . . . . . Terrain Destroyed . | . . . . . . Melee . | . . . . . . Projectile . | . . . . . . AOE . | . . . . . . Actions | -11 -10 -9 -8 -7 -6 --------- Run | Scr Mat Mat Mat Fac Fac Total 1392 | 22 57 161 55 763 334 Wait 62 | . . . . 59 3 Move 1277 | 22 57 158 54 680 306 Hop . | . . . . . . Pick Up . | . . . . . . Fast Attach . | . . . . . . Attach . | . . . . . . Detach . | . . . . . . Swap . | . . . . . . Drop . | . . . . . . Fire . | . . . . . . Melee . | . . . . . . Ram 19 | . . 3 1 5 10 Kick . | . . . . . . Crush . | . . . . . . Escape Stasis 30 | . . . . 15 15 Rewire . | . . . . . . Trap . | . . . . . . Miscellaneous 4 | . . . . 4 . Route ------- -11/Scrapyard -10/Materials (discovered 3 exits: *Mat x3) -9/Materials (discovered 4 exits: *Mat x3 / *Min) -8/Materials (discovered 3 exits: *Fac x3) -7/Factory -6/Factory History --------- Turn | Location | Event 3 | -11/Scrapyard | Identified exit to Materials 3 | -11/Scrapyard | Discovered exit to Materials (range 16) 12 | -11/Scrapyard | Entered Materials 23 | -10/Materials | Identified exit to Materials 41 | -10/Materials | Entered another Materials area 43 | -9/Materials | Reached level 2 43 | -9/Materials | Reached level 3 84 | -9/Materials | Identified exit to Mines 84 | -9/Materials | Discovered exit to Mines (range 13) 113 | -9/Materials | Identified exit to Materials 124 | -9/Materials | Entered another Materials area 126 | -8/Materials | Reached level 4 126 | -8/Materials | Reached level 5 126 | -8/Materials | Reached level 6 137 | -8/Materials | Identified exit to Factory 153 | -8/Materials | Entered Factory 155 | -7/Factory | Reached level 7 155 | -7/Factory | Reached level 8 155 | -7/Factory | Reached level 9 188 | -7/Factory | Allied Derelicts emerged from ambush trap array 305 | -7/Factory | Build established: Hacker-Mutant 530 | -7/Factory | Core integrity fell below 50% 570 | -7/Factory | Identified exit to Factory 570 | -7/Factory | Discovered exit to Factory (range 15) 577 | -7/Factory | Entered another Factory area 579 | -6/Factory | Reached level 10 579 | -6/Factory | Reached level 11 579 | -6/Factory | Reached level 12 726 | -6/Factory | Core integrity fell below 50% 751 | -6/Factory | Core integrity fell below 20% 758 | -6/Factory | Destroyed by Y-54 Guardian with Gatling Laser Last Messages --------------- Slammed into T-07 Excavator. Destabilizing: Core damaged (-50). Slammed into R-10 Processor. R-10 Processor knocked back. W-25 Informer distress signal alerts nearby ally. P-60 Hacker resets R-10 Processor, system corruption cleaned. U-05 Engineer lays Concrete. Triggered Shock Trap. The floor emits a surge of raw power. System corrupted (+1). Slammed into R-10 Processor. C-30 ARC bursts open, deploying its payload. S-27 Virus unfolds itself. U-05 Engineer lays Concrete. Slammed into S-27 Virus. U-05 Engineer lays Concrete. C-30 ARC bursts open, deploying its payload. S-27 Virus unfolds itself. Slammed into R-10 Processor. S-27 Virus IFF system glitched. Map ----- +----------------------------------------------------+ | ?????????????????????????????????????????????????? | | ?????????????????????????????????????????????????? | | ?????????????????????????????????????????????????? | | ?????????????????????????????????????????????????? | | ?????????????????????????????????????????????????? | | ?????????????????????????????????????????????????? | | ?????????????????????????????????????????????????? | | ?????????????????????????????????????????????????? | | ?????????????????????????????????????????????????? | | ######???????????????????????????????????????????? | | #???????????????????????????????????????????? | | " #???????????????????????????????????????????? | | %%% #???????????????????????????????????????????? | | ##% #?????????????????? ???????????????????????? | | ?# #?????????#########/##??????????????????????? | | ?# /?????????# ??????????????????????? | | ?# #?????????# ??????????????????????? | | ?# #?????????+ ???????????????????????? | | ?# #?????????# ????????????????????????? | | ?# #?????????# ??????????????????????????? | | ?# #?????????# #???????????????????????????? | | ?# #???????### ###?????????????????????????? | | ## ###?????# % R #################?????????? | | ] #######ss s ????????? | | s ????????? | | !% @ ????????? | | ! Y ????????? | | ????????? | | ?????????? | | #### ## t ?????????? | | ###+####??# ## ####+###########??????????? | | ??????????# ######+#####?????????????????????????? | | ??????????# #????????????????????????????????????? | | ??????????# #????????????????????????????????????? | | ??????????# #????????????????????????????????????? | | ??????????# #????????????????????????????????????? | | ?????????? #????????????????????????????????????? | | ??????????# #????????????????????????????????????? | | ??????????? ?????????????????????????????????????? | | ??????????? ?????????????????????????????????????? | | ??????????? ?????????????????????????????????????? | | ?????????????????????????????????????????????????? | | ?????????????????????????????????????????????????? | | ?????????????????????????????????????????????????? | | ?????????????????????????????????????????????????? | | ?????????????????????????????????????????????????? | | ?????????????????????????????????????????????????? | | ?????????????????????????????????????????????????? | | ?????????????????????????????????????????????????? | | ?????????????????????????????????????????????????? | +----------------------------------------------------+ Best States ------------- Heat Dissipation 25 Energy Generation 5 Energy Capacity 100 Matter Stores 300 Matter Capacity 300 Sight Range 16 Terrain Scan Density 10 Resistance: KI 35 Resistance: TH 35 Resistance: EX 35 Resistance: EM 35 Resistance: I 35 Resistance: S 35 Resistance: P 35 Evasion (%) 50 Offensive Hacking 20 Item Schematics ----------------- None Robot Schematics ------------------ None Fabricated ------------ Nothing Alien Tech Used ----------------- None Achievements -------------- None Challenges ------------ None RPGLIKE | -11 -10 -9 -8 -7 -6 --------- Run | Scr Mat Mat Mat Fac Fac Levels Raised 11 | . . 2 3 3 3 XP Earned 22909 | 6000 130 3512 4515 4473 4279 XP Spent 480 | . . . . . 480 Upgrades 8 | . . . . . 8 Core Integrity 8 | . . . . . 8 Protomatter Created 62 | . . . . 62 . Integrity Restored 92 | . . . . 92 . Core 92 | . . . . 92 . Protomatter Decayed 146 | . . . . 146 . Game ------ Seed SlugMiniTreads Manual? 0 Play Time 00:13:40 Cumulative 86.5 hours Start 2019.12.21 @ 09:55:39 End 2019.12.21 @ 10:07:00 Sessions 1 Manual Loads 0 Difficulty Explorer Special Mode Winter2019/RPGLIKE Game No. 56 Rogue 23 Adventurer 9 Explorer 24 Win Type - Total 2 Types 2/0/0/0/0/0/0 Lore% 51 Gallery% 60 Achievement% 44 Wizard Run 0 Options --------- ASCII 0 Keyboard 0 Movement Mouse Keybinds 0 Fullscreen 1 Font 18/SmallcapsGlow Map View 76x50 Tactical HUD 0 Map Filters NONE Filters NONE Steam 1 RUN: 0c19fd7f-e5f0-4d65-80a4-4c481b23e3c3